fUSD/lending_fUSD_20250208
["ID","MTS","AMOUNT","RATE_DAILY","PERIOD"]
[352327534,1739043058319,-873.47,0.00010545,2]
[352327535,1739043058330,-500.0,0.00010545,2]
[352327536,1739043058339,-1476.66,0.00010545,2]
[352327537,1739043058349,-1221.84,0.00010545,2]
[352327538,1739043058360,-500.0,0.00010545,2]
[352327539,1739043058372,-500.0,0.00010546,2]
[352327540,1739043058382,-500.0,0.00010546,2]
[352327541,1739043058392,-500.0,0.00010546,2]
[352327542,1739043058402,-177.57734217,0.00010546,2]
[352327543,1739043058412,-500.0,0.00010546,2]
[352327544,1739043058422,-500.0,0.00010546,2]
[352327545,1739043058431,-500.0,0.00010546,2]
[352327546,1739043058442,-500.0,0.00010546,2]
[352327547,1739043058453,-500.0,0.00010546,2]
[352327548,1739043058465,-500.0,0.00010546,2]
[352327549,1739043058478,-500.0,0.00010546,2]
[352327550,1739043058492,-500.0,0.00010546,2]
[352327551,1739043058504,-500.0,0.00010546,2]
[352327552,1739043058515,-500.0,0.00010546,2]
[352327553,1739043058525,-500.0,0.00010546,2]
[352327554,1739043058539,-500.0,0.00010546,2]
[352327555,1739043058552,-500.0,0.00010546,2]
[352327556,1739043058564,-500.0,0.00010546,2]
[352327557,1739043058576,-500.0,0.00010546,2]
[352327558,1739043058588,-500.0,0.00010546,2]
[352327559,1739043058601,-500.0,0.00010546,2]
[352327560,1739043058615,-500.0,0.00010546,2]
[352327561,1739043058627,-500.0,0.00010546,2]
[352327562,1739043058639,-500.0,0.00010546,2]
[352327563,1739043058649,-500.0,0.00010546,2]
[352327564,1739043058660,-500.0,0.00010546,2]
[352327565,1739043058672,-500.0,0.00010546,2]
[352327566,1739043058684,-500.0,0.00010546,2]
[352327567,1739043058696,-500.0,0.00010546,2]
[352327568,1739043058709,-500.0,0.00010546,2]
[352327569,1739043058722,-500.0,0.00010546,2]
[352327570,1739043058735,-500.0,0.00010546,2]
[352327571,1739043058747,-500.0,0.00010546,2]
[352327572,1739043058759,-500.0,0.00010546,2]
[352327573,1739043058771,-517.61,0.00010546,2]
[352327574,1739043058784,-500.0,0.00010546,2]
[352327575,1739043058798,-629.64,0.00010546,2]
[352327576,1739043058810,-500.0,0.00010546,2]
[352327577,1739043058822,-500.0,0.00010546,2]
[352327578,1739043058834,-500.0,0.00010546,2]
[352327579,1739043058846,-500.0,0.00010546,2]
[352327580,1739043058857,-781.39,0.00010546,2]
[352327581,1739043058870,-500.0,0.00010546,2]
[352327582,1739043058884,-500.0,0.00010546,2]
[352327583,1739043058898,-929.63,0.00010546,2]
[352327584,1739043058910,-500.0,0.00010546,2]
[352327585,1739043058921,-500.0,0.00010546,2]
[352327586,1739043058932,-619.68,0.00010546,2]
[352327587,1739043058943,-500.0,0.00010546,2]
[352327588,1739043058954,-506.68,0.00010546,2]
[352327589,1739043058965,-500.0,0.00010546,2]
[352327590,1739043058977,-738.39,0.00010546,2]
[352327591,1739043058991,-500.0,0.00010546,2]
[352327592,1739043059003,-500.0,0.00010546,2]
[352327593,1739043059014,-500.0,0.00010546,2]
[352327594,1739043059024,-546.26205649,0.00010546,2]
[352327595,1739043059034,-877.37,0.00010546,2]
[352327596,1739043059045,-500.0,0.00010546,2]
[352327597,1739043059057,-638.94,0.00010546,2]
[352327598,1739043059071,-481.37983645,0.00010546,2]
[352327599,1739043059083,-500.0,0.00010546,2]
[352327600,1739043059095,-500.0,0.00010546,2]
[352327601,1739043059105,-500.0,0.00010546,2]
[352327602,1739043059116,-500.0,0.00010546,2]
[352327603,1739043059126,-500.0,0.00010546,2]
[352327604,1739043059138,-601.77,0.00010546,2]
[352327605,1739043059148,-500.0,0.00010546,2]
[352327606,1739043059160,-500.0,0.00010546,2]
[352327607,1739043059172,-500.0,0.00010546,2]
[352327608,1739043059183,-500.0,0.00010546,2]
[352327609,1739043059194,-366.35663751,0.00010546,2]
[352327610,1739043059205,-500.0,0.00010546,2]
[352327611,1739043059217,-500.0,0.00010546,2]
[352327612,1739043059228,-500.0,0.00010546,2]
[352327613,1739043059238,-347.27685625,0.00010546,2]
[352327614,1739043059249,-500.0,0.00010546,2]
[352327615,1739043059260,-500.0,0.00010546,2]
[352327616,1739043059271,-500.0,0.00010546,2]
[352327617,1739043059282,-500.0,0.00010546,2]
[352327618,1739043059293,-500.0,0.00010546,2]
[352327619,1739043059303,-500.0,0.00010546,2]
[352327620,1739043059315,-500.0,0.00010546,2]
[352327621,1739043059325,-500.0,0.00010546,2]
[352327622,1739043059335,-500.0,0.00010546,2]
[352327623,1739043059346,-500.0,0.00010546,2]
[352327624,1739043059361,-500.0,0.00010546,2]
[352327625,1739043059371,-500.0,0.00010546,2]
[352327626,1739043059382,-500.0,0.00010546,2]
[352327627,1739043059393,-503.38,0.00010546,2]
[352327628,1739043059405,-500.0,0.00010546,2]
[352327629,1739043059416,-292.07327745,0.00010546,2]
[352327630,1739043059428,-588.2,0.00010546,2]
[352327631,1739043059438,-500.0,0.00010546,2]
[352327632,1739043059450,-500.0,0.00010546,2]
[352327633,1739043059460,-500.0,0.00010546,2]
[352327634,1739043059475,-511.44,0.00010546,2]
[352327635,1739043059485,-500.0,0.00010546,2]
[352327636,1739043059496,-632.96,0.00010546,2]
[352327637,1739043059508,-500.0,0.00010546,2]
[352327638,1739043059519,-744.21,0.00010546,2]
[352327639,1739043059530,-500.0,0.00010546,2]
[352327640,1739043059540,-500.0,0.00010546,2]
[352327641,1739043059552,-500.0,0.00010546,2]
[352327642,1739043059562,-500.0,0.00010546,2]
[352327643,1739043059574,-500.0,0.00010546,2]
[352327644,1739043059586,-500.0,0.00010546,2]
[352327645,1739043059603,-666.37,0.00010546,2]
[352327646,1739043059615,-855.64,0.00010546,2]
[352327647,1739043059626,-500.0,0.00010546,2]
[352327648,1739043059636,-761.03,0.00010546,2]
[352327649,1739043059648,-777.48,0.00010546,2]
[352327650,1739043059659,-500.0,0.00010546,2]
[352327651,1739043059670,-1179.22,0.00010546,2]
[352327652,1739043059682,-500.0,0.00010546,2]
[352327653,1739043059693,-597.46,0.00010546,2]
[352327654,1739043059704,-500.0,0.00010546,2]
[352327655,1739043059716,-500.0,0.00010546,2]
[352327656,1739043059727,-500.0,0.00010546,2]
[352327657,1739043059739,-500.0,0.00010546,2]
[352327658,1739043059750,-500.0,0.00010546,2]
[352327659,1739043059761,-2670.91,0.00010546,2]
[352327660,1739043059773,-500.0,0.00010546,2]
[352327661,1739043059784,-4010.65,0.00010546,2]
[352327662,1739043059796,-817.59,0.00010546,2]
[352327663,1739043059807,-500.0,0.00010546,2]
[352327664,1739043059818,-500.0,0.00010546,2]
[352327665,1739043059830,-1271.98,0.00010546,2]
[352327666,1739043059841,-940.49,0.00010546,2]
[352327667,1739043059852,-500.0,0.00010546,2]
[352327668,1739043059867,-500.0,0.00010546,2]
[352327669,1739043059878,-500.0,0.00010546,2]
[352327670,1739043059889,-1335.61,0.00010546,2]
[352327671,1739043059901,-989.3,0.00010546,2]
[352327672,1739043059914,-500.0,0.00010546,2]
[352327673,1739043059925,-745.3,0.00010546,2]
[352327674,1739043059936,-1381.9,0.00010546,2]
[352327675,1739043059948,-500.0,0.00010546,2]
[352327676,1739043059959,-500.0,0.00010546,2]
[352327677,1739043059970,-500.0,0.00010546,2]
[352327678,1739043059983,-500.0,0.00010546,2]
[352327679,1739043059995,-1083.73,0.00010546,2]
[352327680,1739043060007,-1420.49,0.00010546,2]
[352327681,1739043060018,-500.0,0.00010546,2]
[352327682,1739043060029,-500.0,0.00010546,2]
[352327683,1739043060041,-805.22,0.00010546,2]
[352327684,1739043060053,-977.83,0.00010546,2]
[352327685,1739043060066,-1000.0,0.00010546,2]
[352327686,1739043060078,-500.0,0.00010546,2]
[352327687,1739043060089,-1078.77,0.00010546,2]
[352327688,1739043060100,-500.0,0.00010546,2]
[352327689,1739043060111,-872.95,0.00010546,2]
[352327690,1739043060122,-1162.31,0.00010546,2]
[352327691,1739043060134,-1205.36,0.00010546,2]
[352327692,1739043060145,-161.15897122,0.00010546,2]
[352327693,1739043060156,-500.0,0.00010546,2]
[352327694,1739043060168,-1261.93,0.00010546,2]
[352327695,1739043060179,-970.23,0.00010546,2]
[352327696,1739043060190,-758.61,0.00010546,2]
[352327697,1739043060202,-628.69,0.00010546,2]
[352327698,1739043060212,-644.28,0.00010546,2]
[352327699,1739043060225,-500.0,0.00010546,2]
[352327700,1739043060236,-500.0,0.00010546,2]
[352327701,1739043060246,-953.29,0.00010546,2]
[352327702,1739043060258,-500.0,0.00010546,2]
[352327703,1739043060270,-1080.65,0.00010546,2]
[352327704,1739043060281,-576.07,0.00010547,2]
[352327705,1739043060293,-2032.36,0.00010547,2]
[352327706,1739043060304,-1169.34,0.00010547,2]
[352327707,1739043060316,-897.82,0.00010547,2]
[352327708,1739043060327,-500.0,0.00010547,2]
[352327709,1739043060339,-500.0,0.00010547,2]
[352327710,1739043060351,-830.0,0.00010547,2]
[352327711,1739043060363,-948.5,0.00010547,2]
[352327712,1739043060376,-845.68,0.00010547,2]
[352327713,1739043060387,-1815.3,0.00010547,2]
[352327714,1739043060398,-1751.76,0.00010547,2]
[352327715,1739043060410,-863.25,0.00010547,2]
[352327716,1739043060421,-692.67,0.00010547,2]
[352327717,1739043060432,-1575.88,0.00010547,2]
[352327718,1739043060445,-1834.85,0.00010547,2]
[352327719,1739043060456,-779.44,0.00010547,2]
[352327720,1739043060468,-1013.19,0.00010547,2]
[352327721,1739043060479,-500.0,0.00010547,2]
[352327722,1739043060491,-1086.66,0.00010547,2]
[352327723,1739043060502,-1278.1,0.00010547,2]
[352327724,1739043060514,-2399.26,0.00010547,2]
[352327725,1739043060526,-500.0,0.00010547,2]
[352327726,1739043060537,-671.24,0.00010547,2]
[352327727,1739043060548,-500.0,0.00010547,2]
[352327728,1739043060559,-381.09712228,0.00010547,2]
[352327729,1739043060570,-860.53,0.00010547,2]
[352327730,1739043060581,-1412.47,0.00010547,2]
[352327731,1739043060592,-1223.4,0.00010547,2]
[352327732,1739043060603,-620.81,0.00010547,2]
[352327733,1739043060613,-562.06,0.00010547,2]
[352327734,1739043060624,-2946.05953408,0.0001063,2]
[352327735,1739043060635,-521.03,0.00010682,2]
[352327736,1739043060646,-500.0,0.00010682,2]
[352327737,1739043060656,-619.25,0.00010682,2]
[352327738,1739043060668,-500.0,0.00010682,2]
[352327739,1739043060679,-845.14,0.00010682,2]
[352327740,1739043060690,-719.5,0.00010682,2]
[352327741,1739043060700,-500.0,0.00010682,2]
[352327742,1739043060711,-712.65,0.00010682,2]
[352327743,1739043060724,-500.0,0.00010682,2]
[352327744,1739043060735,-500.0,0.00010682,2]
[352327745,1739043060746,-661.8,0.00010682,2]
[352327746,1739043060757,-500.0,0.00010682,2]
[352327747,1739043060768,-500.0,0.00010682,2]
[352327748,1739043060779,-156.96242407,0.00010682,2]
[352327749,1739043060790,-500.0,0.00010682,2]
[352327750,1739043060801,-500.0,0.00010682,2]
[352327751,1739043060811,-500.0,0.00010682,2]
[352327752,1739043060822,-572.41,0.00010682,2]
[352327753,1739043060833,-500.0,0.00010682,2]
[352327754,1739043060844,-297.93,0.00010682,2]
[352327755,1739043060855,-500.0,0.00010682,2]
[352327756,1739043060865,-642.26,0.00010682,2]
[352327757,1739043060876,-1123.42,0.00010682,2]
[352327758,1739043060886,-500.0,0.00010682,2]
[352327759,1739043060897,-500.0,0.00010682,2]
[352327760,1739043060907,-612.27,0.00010682,2]
[352327761,1739043060918,-777.9,0.00010682,2]
[352327762,1739043060929,-823.974585,0.00010682,2]
[352327763,1739043060940,-510.71,0.00010682,2]
[352327764,1739043060951,-500.0,0.00010682,2]
[352327765,1739043060962,-500.0,0.00010682,2]
[352327766,1739043060974,-552.83,0.00010682,2]
[352327767,1739043060986,-500.0,0.00010682,2]
[352327768,1739043060997,-762.13,0.00010682,2]
[352327769,1739043061012,-549.02731878,0.00010682,2]
[352327770,1739043061023,-500.0,0.00010682,2]
[352327771,1739043061034,-500.0,0.00010682,2]
[352327772,1739043061046,-786.67,0.00010682,2]
[352327773,1739043061058,-500.0,0.00010682,2]
[352327774,1739043061069,-752.894577,0.00010682,2]
[352327775,1739043061079,-500.0,0.00010682,2]
[352327776,1739043061090,-742.31,0.00010682,2]
[352327777,1739043061101,-500.0,0.00010682,2]
[352327778,1739043061111,-500.0,0.00010682,2]
[352327779,1739043061122,-571.41,0.00010682,2]
[352327780,1739043061133,-491.02385999,0.00010682,2]
[352327781,1739043061143,-835.53,0.00010682,2]
[352327782,1739043061424,-968.82,0.00010682,2]
[352327783,1739043061525,-500.0,0.00010682,2]
[352327784,1739043061541,-605.99,0.00010682,2]
[352327785,1739043061551,-502.84,0.00010682,2]
[352327786,1739043061561,-851.48,0.00010682,2]
[352327787,1739043061571,-500.0,0.00010682,2]
[352327788,1739043061588,-500.0,0.00010682,2]
[352327789,1739043061598,-644.53,0.00010682,2]
[352327790,1739043061608,-697.9,0.00010682,2]
[352327791,1739043061618,-234.47,0.00010682,2]
[352327792,1739043061628,-752.21,0.00010682,2]
[352327793,1739043061638,-500.0,0.00010682,2]
[352327794,1739043061647,-500.0,0.00010682,2]
[352327795,1739043061658,-763.93,0.00010682,2]
[352327796,1739043061668,-802.72,0.00010682,2]
[352327797,1739043061677,-500.0,0.00010682,2]
[352327798,1739043061691,-1508.05,0.00010682,2]
[352327799,1739043061700,-563.54,0.00010682,2]
[352327800,1739043061710,-500.0,0.00010682,2]
[352327801,1739043061723,-896.17,0.00010682,2]
[352327802,1739043061732,-649.25,0.00010682,2]
[352327803,1739043061741,-1421.08,0.00010682,2]
[352327804,1739043061751,-1296.16,0.00010682,2]
[352327805,1739043061760,-837.55,0.00010682,2]
[352327806,1739043061770,-500.0,0.00010682,2]
[352327807,1739043061780,-563.67,0.00010682,2]
[352327808,1739043061789,-500.0,0.00010682,2]
[352327809,1739043061799,-778.79,0.00010682,2]
[352327810,1739043061808,-954.36,0.00010682,2]
[352327811,1739043061821,-647.22,0.00010682,2]
[352327812,1739043061832,-736.34,0.00010682,2]
[352327813,1739043061842,-940.59385081,0.00010682,2]
[352327814,1739043062145,-633.55614919,0.00010682,2]
[352327815,1739043062155,-800.6,0.00010682,2]
[352327816,1739043062165,-981.33,0.00010682,2]
[352327817,1739043062175,-938.54,0.00010682,2]
[352327818,1739043062184,-1008.39,0.00010682,2]
[352327819,1739043062193,-500.0,0.00010682,2]
[352327820,1739043062203,-1172.95,0.00010682,2]
[352327821,1739043062219,-776.73,0.00010682,2]
[352327822,1739043062229,-2351.42,0.00010682,2]
[352327823,1739043062239,-1470.42,0.00010682,2]
[352327824,1739043062248,-756.89,0.00010682,2]
[352327825,1739043062258,-830.68,0.00010682,2]
[352327826,1739043062268,-611.75,0.00010682,2]
[352327827,1739043062277,-1327.21,0.00010682,2]
[352327828,1739043062286,-1450.77,0.00010682,2]
[352327829,1739043062296,-500.0,0.00010682,2]
[352327830,1739043062305,-1229.83,0.00010682,2]
[352327831,1739043062315,-659.24,0.00010682,2]
[352327832,1739043062325,-2123.6,0.00010682,2]
[352327833,1739043062335,-669.29,0.00010682,2]
[352327834,1739043062345,-500.0,0.00010682,2]
[352327835,1739043062356,-1113.0,0.00010682,2]
[352327836,1739043062367,-3985.16,0.00010682,2]
[352327837,1739043062377,-500.0,0.00010682,2]
[352327838,1739043062386,-1725.78,0.00010682,2]
[352327839,1739043062395,-500.0,0.00010682,2]
[352327840,1739043062404,-500.0,0.00010682,2]
[352327841,1739043062414,-2160.17,0.00010682,2]
[352327842,1739043062423,-500.0,0.00010682,2]
[352327843,1739043062432,-1179.79,0.00010682,2]
[352327844,1739043062442,-1817.34,0.00010682,2]
[352327845,1739043062452,-558.14,0.00010682,2]
[352327846,1739043062462,-826.7,0.00010682,2]
[352327847,1739043062473,-2208.19,0.00010682,2]
[352327848,1739043062483,-1581.51,0.00010682,2]
[352327849,1739043062492,-2813.03,0.00010682,2]
[352327850,1739043062501,-500.0,0.00010682,2]
[352327851,1739043062511,-500.0,0.00010682,2]
[352327852,1739043062520,-929.72,0.00010682,2]
[352327853,1739043062530,-1073.87,0.00010682,2]
[352327854,1739043062540,-1284.77,0.00010682,2]
[352327855,1739043062550,-904.23,0.00010682,2]
[352327856,1739043062560,-1492.59,0.00010682,2]
[352327857,1739043062570,-1214.2,0.00010682,2]
[352327858,1739043062579,-1224.9,0.00010682,2]
[352327859,1739043062588,-500.0,0.00010682,2]
[352327860,1739043062598,-2931.99,0.00010682,2]
[352327861,1739043062608,-803.19,0.00010682,2]
[352327862,1739043062617,-1092.49,0.00010682,2]
[352327863,1739043062628,-658.36,0.00010682,2]
[352327864,1739043062637,-892.2,0.00010682,2]
[352327865,1739043062646,-947.86,0.00010682,2]
[352327866,1739043062656,-636.37,0.00010682,2]
[352327867,1739043062665,-500.0,0.00010682,2]
[352327868,1739043062675,-500.0,0.00010682,2]
[352327869,1739043062686,-733.53,0.00010682,2]
[352327870,1739043062696,-1365.88,0.00010682,2]
[352327871,1739043062706,-1204.67,0.00010682,2]
[352327872,1739043062715,-500.0,0.00010682,2]
[352327873,1739043062726,-500.0,0.00010682,2]
[352327874,1739043062736,-1240.06,0.00010682,2]
[352327875,1739043062747,-531.84,0.00010682,2]
[352327876,1739043062757,-1628.18,0.00010682,2]
[352327877,1739043062766,-1775.76,0.00010682,2]
[352327878,1739043062776,-873.47,0.00010682,2]
[352327879,1739043062785,-500.0,0.00010682,2]
[352327880,1739043062795,-1476.66,0.00010682,2]
[352327881,1739043062804,-1221.84,0.00010682,2]
[352327882,1739043062814,-500.0,0.00010682,2]
[352327883,1739043062823,-500.0,0.00010683,2]
[352327884,1739043062832,-500.0,0.00010683,2]
[352327885,1739043062842,-500.0,0.00010683,2]
[352327886,1739043062851,-360.8,0.00010683,2]
[352327887,1739043062860,-500.0,0.00010683,2]
[352327888,1739043062870,-500.0,0.00010683,2]
[352327889,1739043062879,-500.0,0.00010683,2]
[352327890,1739043062888,-500.0,0.00010683,2]
[352327891,1739043062898,-500.0,0.00010683,2]
[352327892,1739043062907,-500.0,0.00010683,2]
[352327893,1739043062917,-500.0,0.00010683,2]
[352327894,1739043062927,-500.0,0.00010683,2]
[352327895,1739043062936,-500.0,0.00010683,2]
[352327896,1739043062945,-500.0,0.00010683,2]
[352327897,1739043062955,-500.0,0.00010683,2]
[352327898,1739043062963,-500.0,0.00010683,2]
[352327899,1739043062974,-500.0,0.00010683,2]
[352327900,1739043062983,-500.0,0.00010683,2]
[352327901,1739043062993,-440.07,0.00010683,2]
[352327902,1739043063002,-500.0,0.00010683,2]
[352327903,1739043063011,-500.0,0.00010683,2]
[352327904,1739043063020,-500.0,0.00010683,2]
[352327905,1739043063030,-500.0,0.00010683,2]
[352327906,1739043063039,-500.0,0.00010683,2]
[352327907,1739043063049,-500.0,0.00010683,2]
[352327908,1739043063058,-500.0,0.00010683,2]
[352327909,1739043063068,-500.0,0.00010683,2]
[352327910,1739043063078,-500.0,0.00010683,2]
[352327911,1739043063088,-500.0,0.00010683,2]
[352327912,1739043063097,-500.0,0.00010683,2]
[352327913,1739043063108,-517.61,0.00010683,2]
[352327914,1739043063118,-500.0,0.00010683,2]
[352327915,1739043063128,-629.64,0.00010683,2]
[352327916,1739043063138,-500.0,0.00010683,2]
[352327917,1739043063148,-500.0,0.00010683,2]
[352327918,1739043063158,-500.0,0.00010683,2]
[352327919,1739043063168,-781.39,0.00010683,2]
[352327920,1739043063178,-500.0,0.00010683,2]
[352327921,1739043063187,-500.0,0.00010683,2]
[352327922,1739043063196,-929.63,0.00010683,2]
[352327923,1739043063205,-500.0,0.00010683,2]
[352327924,1739043063215,-500.0,0.00010683,2]
[352327925,1739043063225,-619.68,0.00010683,2]
[352327926,1739043063235,-500.0,0.00010683,2]
[352327927,1739043063244,-506.68,0.00010683,2]
[352327928,1739043063253,-500.0,0.00010683,2]
[352327929,1739043063262,-738.39,0.00010683,2]
[352327930,1739043063272,-500.0,0.00010683,2]
[352327931,1739043063283,-500.0,0.00010683,2]
[352327932,1739043063292,-500.0,0.00010683,2]
[352327933,1739043063302,-877.37,0.00010683,2]
[352327934,1739043063312,-500.0,0.00010683,2]
[352327935,1739043063323,-638.94,0.00010683,2]
[352327936,1739043063333,-500.0,0.00010683,2]
[352327937,1739043063343,-500.0,0.00010683,2]
[352327938,1739043063354,-500.0,0.00010683,2]
[352327939,1739043063364,-500.0,0.00010683,2]
[352327940,1739043063376,-500.0,0.00010683,2]
[352327941,1739043063387,-601.77,0.00010683,2]
[352327942,1739043063398,-500.0,0.00010683,2]
[352327943,1739043063408,-500.0,0.00010683,2]
[352327944,1739043063418,-500.0,0.00010683,2]
[352327945,1739043063428,-500.0,0.00010683,2]
[352327946,1739043063437,-500.0,0.00010683,2]
[352327947,1739043063447,-500.0,0.00010683,2]
[352327948,1739043063457,-500.0,0.00010683,2]
[352327949,1739043063467,-500.0,0.00010683,2]
[352327950,1739043063478,-500.0,0.00010683,2]
[352327951,1739043063488,-500.0,0.00010683,2]
[352327952,1739043063498,-500.0,0.00010683,2]
[352327953,1739043063509,-500.0,0.00010683,2]
[352327954,1739043063521,-500.0,0.00010683,2]
[352327955,1739043063532,-500.0,0.00010683,2]
[352327956,1739043063542,-500.0,0.00010683,2]
[352327957,1739043063552,-500.0,0.00010683,2]
[352327958,1739043063563,-500.0,0.00010683,2]
[352327959,1739043063572,-500.0,0.00010683,2]
[352327960,1739043063582,-500.0,0.00010683,2]
[352327961,1739043063592,-500.0,0.00010683,2]
[352327962,1739043063603,-503.38,0.00010683,2]
[352327963,1739043063613,-500.0,0.00010683,2]
[352327964,1739043063624,-588.2,0.00010683,2]
[352327965,1739043063634,-500.0,0.00010683,2]
[352327966,1739043063644,-500.0,0.00010683,2]
[352327967,1739043063654,-500.0,0.00010683,2]
[352327968,1739043063664,-511.44,0.00010683,2]
[352327969,1739043063674,-493.46797267,0.00010683,2]
[352327970,1739043063685,-632.96,0.00010683,2]
[352327971,1739043063695,-500.0,0.00010683,2]
[352327972,1739043063705,-744.21,0.00010683,2]
[352327973,1739043063714,-500.0,0.00010683,2]
[352327974,1739043063726,-500.0,0.00010683,2]
[352327975,1739043063736,-500.0,0.00010683,2]
[352327976,1739043063746,-500.0,0.00010683,2]
[352327977,1739043063756,-500.0,0.00010683,2]
[352327978,1739043063767,-500.0,0.00010683,2]
[352327979,1739043063776,-500.0,0.00010683,2]
[352327980,1739043063786,-666.37,0.00010683,2]
[352327981,1739043063796,-855.64,0.00010683,2]
[352327982,1739043063806,-500.0,0.00010683,2]
[352327983,1739043063816,-761.03,0.00010683,2]
[352327984,1739043063826,-777.48,0.00010683,2]
[352327985,1739043063835,-500.0,0.00010683,2]
[352327986,1739043063846,-1179.22,0.00010683,2]
[352327987,1739043063855,-500.0,0.00010683,2]
[352327988,1739043063865,-597.46,0.00010683,2]
[352327989,1739043063875,-500.0,0.00010683,2]
[352327990,1739043063885,-500.0,0.00010683,2]
[352327991,1739043063895,-500.0,0.00010683,2]
[352327992,1739043063904,-500.0,0.00010683,2]
[352327993,1739043063914,-2670.91,0.00010683,2]
[352327994,1739043063924,-500.0,0.00010683,2]
[352327995,1739043063934,-4010.65,0.00010683,2]
[352327996,1739043063947,-500.0,0.00010683,2]
[352327997,1739043063956,-817.59,0.00010683,2]
[352327998,1739043063967,-359.47433536,0.00010683,2]
[352327999,1739043063979,-500.0,0.00010683,2]
[352328000,1739043063988,-1271.98,0.00010683,2]
[352328001,1739043063998,-940.49,0.00010683,2]
[352328002,1739043064008,-500.0,0.00010683,2]
[352328003,1739043064019,-500.0,0.00010683,2]
[352328004,1739043064029,-500.0,0.00010683,2]
[352328005,1739043064040,-1335.61,0.00010683,2]
[352328006,1739043064050,-989.3,0.00010683,2]
[352328007,1739043064061,-500.0,0.00010683,2]
[352328008,1739043064071,-745.3,0.00010683,2]
[352328009,1739043064080,-1381.9,0.00010683,2]
[352328010,1739043064090,-500.0,0.00010683,2]
[352328011,1739043064100,-500.0,0.00010683,2]
[352328012,1739043064110,-500.0,0.00010683,2]
[352328013,1739043064120,-500.0,0.00010683,2]
[352328014,1739043064130,-1083.73,0.00010683,2]
[352328015,1739043064140,-1420.49,0.00010683,2]
[352328016,1739043064150,-500.0,0.00010683,2]
[352328017,1739043064160,-500.0,0.00010683,2]
[352328018,1739043064170,-805.22,0.00010683,2]
[352328019,1739043064180,-977.83,0.00010683,2]
[352328020,1739043064190,-1000.0,0.00010683,2]
[352328021,1739043064200,-500.0,0.00010683,2]
[352328022,1739043064211,-1078.77,0.00010683,2]
[352328023,1739043064221,-500.0,0.00010683,2]
[352328024,1739043064231,-872.95,0.00010683,2]
[352328025,1739043064240,-1162.31,0.00010683,2]
[352328026,1739043064250,-1205.36,0.00010683,2]
[352328027,1739043064260,-1261.93,0.00010683,2]
[352328028,1739043064270,-970.23,0.00010683,2]
[352328029,1739043064280,-758.61,0.00010683,2]
[352328030,1739043064290,-628.69,0.00010683,2]
[352328031,1739043064301,-500.0,0.00010683,2]
[352328032,1739043064311,-644.28,0.00010683,2]
[352328033,1739043064321,-500.0,0.00010683,2]